[Event "22nd Rochefort Festival Masters 2024"]
[Site "Rochefort"]
[Date "2024.02.18"]
[Round "2.1"]
[White "Romanov, Evgeny"]
[Black "Pichon, Ewen"]
[Result "1-0"]
[ECO "A18"]
[WhiteElo "2578"]
[BlackElo "2263"]
[Annotator "TA"]
[PlyCount "119"]
[EventDate "2024.02.18"]
[EventType "swiss"]
[EventCountry "FRA"]
[SourceTitle "playchess.com"]
[Source "ChessBase"]
[SourceQuality "1"]
[TimeControl "40/5400+30:1800+30"]

{[%evp 23,119,0,41,35,32,37,45,42,30,38,25,24,18,26,16,10,16,17,81,75,94,63,66,56,66,55,72,86,106,83,75,83,87,81,152,164,160,165,162,142,152,154,150,139,193,206,212,198,228,168,184,193,208,205,197,168,189,156,155,164,227,266,263,257,231,237,238,161,428,423,405,413,410,410,432,323,553,533,1003,1231,1421,1229,1483,1457,1121,1093,1666,1666,1666,1666,1664,1664,1220,1116,9390,7808,4618,4618]} 1. c4 {[%emt 0:12:04]} Nf6 {[%emt 0:00:07]} 2. Nc3 {[%emt 0:00:28]} e6 {[%emt 0:00:04]} 3. e4 {[%emt 0:03:57]} d5 {[%emt 0:01:39]} 4. e5 {[%emt 0:00:10]} d4 {[%emt 0:00:21]} 5. exf6 {[%emt 0:00:30]} dxc3 {[%emt 0:00:04]} 6. bxc3 {[%emt 0:00:09]} Qxf6 {[%emt 0:00:06]} 7. Nf3 {[%emt 0:00:09]} e5 {[%emt 0:01:00]} 8. d4 {[%emt 0:03:05]} exd4 {[%emt 0:00:05]} 9. Bg5 {[%emt 0:01:38]} Qe6+ {[%emt 0:00:32]} 10. Be2 {[%emt 0:00:17]} Be7 {[%emt 0:07:40]} 11. cxd4 {[%emt 0:12:52]} Bxg5 {[%emt 0:04:36]} 12. Nxg5 {[%emt 0:00:07]} Qe7 {[%emt 0:00:11]} 13. Qd2 {[%emt 0:01:57]} h6 {[%emt 0:00:46]} 14. Nf3 {[%emt 0:00:18]} O-O {[%emt 0:03:48]} 15. O-O {[%emt 0:01:32] White is slightly better.} b6 {[%emt 0:16:47]} 16. Rfe1 {[%emt 0:05:23]} Bb7 {[%emt 0:02:46]} 17. Qf4 {[%emt 0:00:43]} Qd6 {[%emt 0:01:04]} 18. Qxd6 {[%emt 0:06:20]} cxd6 {[%emt 0:00:04]} 19. d5 {[%emt 0:01:22]} Nd7 {[%emt 0:03:46]} 20. Nd4 {[%emt 0:00:33]} Nf6 {[%emt 0:00:31]} (20... Nc5 $11 {remains equal.}) 21. a4 $16 {[%emt 0:01:07]} Bc8 {[%emt 0:05:36]} 22. Nb5 {[%emt 0:08:45]} Rd8 $1 {[%emt 0:01:20]} 23. f3 $36 {[%emt 0:00:25][%mdl 2048] White has some pressure.} a6 {[%emt 0:02:33]} 24. Nd4 {[%emt 0:00:20]} Bd7 {[%emt 0:00:05]} 25. Reb1 {[%emt 0:01:51]} Rdb8 {[%emt 0:00:16][%cal Bd8b8,Bb8b7,Bb7c7][%mdl 32]} 26. Rb2 {[%emt 0:05:58]} a5 {[%emt 0:04:08]} 27. Nc6 {[%emt 0:04:47]} Rb7 {[%emt 0:02:23]} 28. Rab1 {[%emt 0:00:43][%cal Ba1b1,Bb1b5,Bb5a5,Ba5a8][%mdl 32] White is more active.} Bxc6 {[%emt 0:00:35]} (28... Be8 $142) 29. dxc6 {[%emt 0:00:03]} Rc7 {[%emt 0:00:04]} 30. Rxb6 {[%emt 0:00:16] And now Rb8+ would win.} Rac8 {[%emt 0:00:04]} 31. R1b5 {[%emt 0:03:47]} Rxc6 {[%emt 0:01:13]} 32. Rxc6 {[%emt 0:00:15]} Rxc6 {[%emt 0:00:02]} 33. Rxa5 {[%emt 0:00:09][%mdl 4096] Endgame. KRB-KRN} Nd7 {[%emt 0:01:00]} (33... g5 $16 34. Kf2 Nd7) 34. Ra8+ $18 {[%emt 0:01:31]} Kh7 {[%emt 0:00:05]} 35. a5 {[%emt 0:08:38]} Nc5 {[%emt 0:03:28]} 36. Kf2 {[%emt 0:07:24]} Kg6 {[%emt 0:02:18]} 37. Ke3 {[%emt 0:00:47] Kd4 is the strong threat.} Kf6 {[%emt 0:00:32]} 38. f4 {[%emt 0:00:53]} Ne6 {[%emt 0:02:08]} 39. g3 {[%emt 0:01:25]} g5 {[%emt 0:01:31]} 40. fxg5+ {[%emt 0:03:16]} hxg5 {[%emt 0:00:12]} 41. Kd3 {[%emt 0:31:07]} Ke5 {[%emt 0:34:13]} (41... Rc5 $142 42. Bh5 d5) 42. Bf3 {[%emt 0:00:50]} Rc5 {[%emt 0:00:14]} 43. Bb7 {[%emt 0:00:00]} f5 {[%emt 0:00:00]} 44. a6 {[%emt 0:00:00] [#] Strongly threatening Re8.} Ra5 {[%emt 0:00:00]} 45. a7 {[%emt 0:00:00]} Nc7 {[%emt 0:00:00] Wards off Re8+} (45... Nc5+ 46. Kc3 Nxb7 (46... Ra3+ $2 47. Kb2 $18) 47. Re8+ Kf6 48. Rf8+ (48. a8=B Nc5 $11) (48. a8=Q Rxa8 49. Rxa8 Nc5 $18) 48... Ke7 49. a8=Q (49. a8=B $2 Kxf8 50. Bxb7 Ra3+ 51. Kb4 Ra2 $19) (49. a8=R Rxa8 50. Rxa8 Nc5 $18) 49... Rxa8 50. Rxa8) (45... Ra3+ 46. Kc2 Kd4) 46. Rc8 {[%emt 0:00:00]} Rxa7 {[%emt 0:00:00]} 47. Rxc7 {[%emt 0:00:00] KRB-KR} Ra3+ {[%emt 0:00:00]} 48. Kc2 {[%emt 0:00:00]} Kd4 {[%emt 0:00:00]} 49. Rf7 {[%emt 0:00:00]} Ra2+ $2 {[%emt 0:00:00] [#]} (49... Kxc4 {keeps fighting.} 50. Rxf5 Ra2+ 51. Kb1 Rxh2 52. Rxg5 Rf2) 50. Kb3 {[%emt 0:00:00] White is clearly winning.} Rf2 {[%emt 0:00:03]} 51. h4 {[%emt 0:00:00]} gxh4 {[%emt 0:00:26]} 52. gxh4 {[%emt 0:00:00][%cal Bg3h4,Bh4h5][%mdl 32]} Ke5 {[%emt 0:00:05]} 53. h5 {[%emt 0:00:13]} Rh2 {[%emt 0:00:03]} 54. Rh7 {[%emt 0:00:15]} f4 {[%emt 0:00:05]} 55. h6 {[%emt 0:00:31]} Kd4 {[%emt 0:01:13]} 56. Rf7 {[%emt 0:01:15]} Rxh6 {[%emt 0:00:42]} 57. Rxf4+ {[%emt 0:00:05]} Kc5 {[%emt 0:00:04]} 58. Rf5+ {[%emt 0:00:07]} Kb6 {[%emt 0:00:04]} 59. Rb5+ {[%emt 0:00:08]} Kc7 {[%emt 0:00:10]} 60. Bd5 {[%emt 0:00:10] Weighted Error Value: White=0.10 (very precise) /Black=0.32.  Mistake:       	---       	Black=6      Inaccurate:     	White=2     	Black=1      OK:         	White=18    	Black=15     Best:        	White=4     	Black=3      Strong:       	---       	Black=1} 1-0

[Event "22nd Rochefort Festival Masters 2024"]
[Site "Rochefort"]
[Date "2024.02.18"]
[Round "2.2"]
[White "Filip, Andrei"]
[Black "Laurent-Paoli, Pierre"]
[Result "0-1"]
[ECO "B12"]
[WhiteElo "2250"]
[BlackElo "2529"]
[Annotator "TA"]
[PlyCount "48"]
[EventDate "2024.02.18"]
[EventType "swiss"]
[EventCountry "FRA"]
[SourceTitle "playchess.com"]
[Source "ChessBase"]
[SourceQuality "1"]
[TimeControl "40/5400+30:1800+30"]

{[%evp 9,48,-4,-3,0,0,-59,10,-85,-82,-77,-43,-51,-44,-50,-31,-45,-34,-157,-110,-182,-177,-179,-120,-156,-124,-138,-145,-320,-264,-264,-293,-331,-335,-326,-316,-268,-329,-389,-378,-477,-425]} 1. e4 {[%emt 0:00:09]} c6 {[%emt 0:09:40]} 2. d4 {[%emt 0:00:09]} d5 {[%emt 0:00:06]} 3. e5 {[%emt 0:00:04]} Bf5 {[%emt 0:00:14]} 4. h4 {[%emt 0:00:08]} h6 {[%emt 0:01:12]} 5. c4 {[%emt 0:05:44]} e6 {[%emt 0:02:18]} 6. Nc3 {[%emt 0:00:09]} Ne7 {[%emt 0:10:19]} 7. Nge2 {[%emt 0:03:01]} (7. Be3 $11) 7... Nd7 {[%emt 0:02:04]} (7... dxc4 $15 8. Ng3 Bd3) 8. Be3 {[%emt 0:06:55]} (8. Ng3 $11 {remains equal.}) 8... dxc4 $17 {[%emt 0:08:21]} 9. Ng3 {[%emt 0:00:48]} b5 {[%emt 0:00:38]} 10. a4 {[%emt 0:09:01]} a6 {[%emt 0:03:07]} 11. Qf3 {[%emt 0:06:50]} Bh7 {[%emt 0:02:10]} 12. Be2 $1 {[%emt 0:06:47]} Nd5 $36 {[%emt 0:05:14][%mdl 2048] Black has some pressure.} 13. Nce4 {[%emt 0:04:58]} (13. Qg4 $15) 13... f5 {[%emt 0:04:16]} (13... Bb4+ $142 14. Kf1 O-O) 14. Nd2 {[%emt 0:15:49]} (14. Nc3 $17) 14... Bb4 $19 {[%emt 0:04:55]} 15. Nh5 {[%emt 0:04:15]} Qe7 {[%emt 0:08:27]} (15... O-O $19 {[%cal Of5f4] White must now prevent ...f4!} 16. Qg3 g6) 16. axb5 $17 {[%emt 0:01:46]} cxb5 {[%emt 0:00:08]} 17. Nf4 {[%emt 0:06:06]} N7b6 {[%emt 0:00:21] Black is more active.} 18. g4 $2 {[%emt 0:02:11] [#] This costs White the game.} (18. O-O $17) 18... fxg4 {[%emt 0:04:22]} 19. Qxg4 {[%emt 0:00:21]} Nxf4 {[%emt 0:00:31]} 20. Bxf4 {[%emt 0:00:28]} Nd5 {[%emt 0:01:59]} 21. Bf3 {[%emt 0:04:54]} Bf5 {[%emt 0:03:22]} 22. Qg3 {[%emt 0:00:35]} a5 {[%emt 0:02:46]} 23. Rg1 {[%emt 0:01:21]} O-O-O {[%emt 0:01:02]} 24. Bxd5 {[%emt 0:01:14]} Rxd5 {[%emt 0:00:21] Weighted Error Value: White=0.44/Black=0.18 (very precise) .  Loses game:     	White=1     	---        Mistake:       	White=4     	Black=3      Inaccurate:     	---       	Black=1      OK:         	White=5     	Black=7      Best:        	White=2     	Black=1      Strong:       	White=1     	---} 0-1

[Event "22nd Rochefort Festival Masters 2024"]
[Site "Rochefort"]
[Date "2024.02.18"]
[Round "2.3"]
[White "Sivuk, Vitaly"]
[Black "Bosc, Seraphina"]
[Result "1-0"]
[ECO "D36"]
[WhiteElo "2502"]
[BlackElo "2213"]
[Annotator "TA"]
[PlyCount "85"]
[EventDate "2024.02.18"]
[EventType "swiss"]
[EventCountry "FRA"]
[SourceTitle "playchess.com"]
[Source "ChessBase"]
[SourceQuality "1"]
[TimeControl "40/5400+30:1800+30"]

{[%evp 27,85,24,29,8,29,35,69,54,147,158,213,202,358,345,352,346,350,328,347,258,238,140,236,145,148,139,165,148,430,425,436,457,478,487,481,231,737,557,1191,1160,1187,1185,1163,1181,1119,1107,1684,1720,1717,1709,1752,1724,1644,1641,1610,1412,1350,1333,29959,29961]} 1. d4 {[%emt 0:13:28]} e6 {[%emt 0:00:41]} 2. c4 {[%emt 0:00:11]} d5 {[%emt 0:00:14]} 3. Nc3 {[%emt 0:00:12]} Nf6 {[%emt 0:00:10]} 4. cxd5 {[%emt 0:00:10]} exd5 {[%emt 0:00:07]} 5. Bg5 {[%emt 0:00:07]} c6 {[%emt 0:00:26]} 6. e3 {[%emt 0:00:09]} Be7 {[%emt 0:00:33]} 7. Bd3 {[%emt 0:00:10]} O-O {[%emt 0:00:49]} 8. Qc2 {[%emt 0:00:09]} h6 {[%emt 0:00:37]} 9. Bf4 {[%emt 0:00:58]} Bd6 {[%emt 0:05:58]} 10. Bxd6 {[%emt 0:00:31]} Qxd6 {[%emt 0:00:05]} 11. Nf3 {[%emt 0:00:36]} Nbd7 {[%emt 0:01:25]} 12. O-O {[%emt 0:00:19]} Re8 {[%emt 0:00:44]} 13. Rab1 {[%emt 0:01:43]} a5 {[%emt 0:02:21]} 14. a3 {[%emt 0:00:15]} Qe7 {[%emt 0:06:24]} 15. Nd2 {[%emt 0:04:48]} Qd6 {[%emt 0:15:56]} 16. Rfc1 {[%emt 0:02:07]} h5 {[%emt 0:04:26]} 17. h3 {[%emt 0:00:51] White is slightly better.} g5 {[%emt 0:03:40]} ({Better is} 17... Qe7 $14) 18. e4 {[%emt 0:04:38]} dxe4 {[%emt 0:03:48]} (18... g4 $16) 19. Ncxe4 {[%emt 0:00:55]} Qxd4 {[%emt 0:08:32]} (19... Qf8 20. Nxg5 Qh6) 20. Nf3 $18 {[%emt 0:01:07]} ({Weaker is} 20. Nxg5 Qf4 21. Nxf7 Kxf7 $14) 20... Qd5 {[%emt 0:05:42][%cal Rf6e4]} 21. Nfxg5 {[%emt 0:05:42]} (21. Bc4 Qxe4 22. Bxf7+ Kf8 23. Bxe8 Qxc2 24. Rxc2 Kxe8 $16) 21... Nxe4 {[%emt 0:01:55]} 22. Nxe4 {[%emt 0:00:06]} Kg7 {[%emt 0:01:42]} 23. Qc3+ {[%emt 0:09:59]} Qe5 {[%emt 0:11:27] [#]} 24. Nd6 {[%emt 0:02:28]} ({Only move:} 24. Qd2 $1 $18 {And now Re1 would win.} Nf6 25. Re1) 24... Re6 {[%emt 0:01:35]} (24... Rd8 $16) 25. Nf5+ {[%emt 0:01:15]} Kf8 {[%emt 0:00:38][%cal Bg7f8,Bf8g8,Bg8h7][%mdl 32]} 26. Qc2 $36 {[%emt 0:00:33][%cal Oc1e1][%mdl 2048] White is on the roll. White is more active.} Nf6 {[%emt 0:03:11]} 27. f4 {[%emt 0:13:07]} Qxf4 {[%emt 0:09:58][%mdl 8192] A mistake that costs the game.} (27... Qd5 $16 {was worth a try.}) 28. Qc5+ {[%emt 0:00:18]} Kg8 {[%emt 0:00:28]} 29. Rf1 {[%emt 0:00:06]} Qe5 {[%emt 0:01:24]} 30. Qf2 {[%emt 0:00:08] [#] Threatens to win with Rbe1.} Nh7 {[%emt 0:08:50]} 31. Nd4 {[%emt 0:06:29]} (31. Rbd1 $142) 31... Re7 $2 {[%emt 0:01:26]} (31... Qe3 32. Nxe6 Qxf2+ 33. Rxf2 Bxe6) 32. Rbe1 {[%emt 0:00:44]} Qc7 {[%emt 0:00:21]} 33. Bxh7+ {[%emt 0:03:53]} Kxh7 {[%emt 0:00:06]} 34. Qh4 {[%emt 0:00:13]} Rxe1 {[%emt 0:00:45]} 35. Qxh5+ {[%emt 0:00:09]} ({Less strong is} 35. Qxe1 Ra6 $16) 35... Kg7 {[%emt 0:00:10]} 36. Qg5+ {[%emt 0:00:12]} ({Not} 36. Rxe1 Qf4 $18) 36... Kh7 {[%emt 0:00:18]} 37. Rxe1 {[%emt 0:00:12] White wants to mate with Re4.} Qd6 {[%emt 0:01:13]} 38. Re4 {[%emt 0:00:21] Threatening mate with Rh4+.} Qg6 {[%emt 0:00:23]} 39. Rh4+ {[%emt 0:00:44] Black is weak on the dark squares} Kg7 {[%emt 0:00:09]} 40. Qe5+ {[%emt 0:00:06]} f6 {[%emt 0:00:24]} 41. Qe7+ {[%emt 0:30:12]} Kg8 {[%emt 0:30:30]} 42. Qd8+ {[%emt 0:00:29]} Kf7 {[%emt 0:01:27]} 43. Rh8 {[%emt 0:00:21] Weighted Error Value: White=0.56/Black=0.63.  Loses game:     	---       	Black=1      Mistake:       	White=2     	Black=5      Inaccurate:     	White=1     	Black=2      OK:         	White=5     	Black=3      Best:        	White=2     	Black=2} 1-0

[Event "22nd Rochefort Festival Masters 2024"]
[Site "Rochefort"]
[Date "2024.02.18"]
[Round "2.4"]
[White "Marie, Maxime"]
[Black "Roshka, Yevgeniy"]
[Result "1-0"]
[ECO "A13"]
[WhiteElo "2204"]
[BlackElo "2474"]
[Annotator "TA"]
[PlyCount "95"]
[EventDate "2024.02.18"]
[EventType "swiss"]
[EventCountry "FRA"]
[SourceTitle "playchess.com"]
[Source "ChessBase"]
[SourceQuality "1"]
[TimeControl "40/5400+30:1800+30"]

{[%evp 12,95,18,-15,0,0,0,0,10,0,0,0,0,0,0,0,15,10,61,0,15,-45,-46,-67,-72,-50,-18,-50,-68,-55,-79,-68,-27,-18,122,118,106,120,639,638,625,635,726,536,557,563,559,550,552,562,560,566,553,473,686,693,811,777,807,795,824,735,712,711,722,716,683,653,722,707,705,701,960,979,935,888,1554,1443,9433,9504,6520,5842,10588,10498,10498,9393]} 1. c4 {[%emt 0:00:45]} e6 {[%emt 0:11:30]} 2. Nf3 {[%emt 0:00:37]} d5 {[%emt 0:00:07]} 3. e3 {[%emt 0:00:16]} Nf6 {[%emt 0:00:15]} 4. b3 {[%emt 0:01:04]} c5 {[%emt 0:01:24]} 5. Bb2 {[%emt 0:03:44]} Nc6 {[%emt 0:00:06]} 6. cxd5 {[%emt 0:02:38]} exd5 {[%emt 0:00:05]} 7. d4 {[%emt 0:06:17]} cxd4 {[%emt 0:15:01]} 8. Nxd4 {[%emt 0:00:25]} Bb4+ {[%emt 0:00:48]} 9. Bc3 $1 {[%emt 0:00:39]} Bd6 {[%emt 0:01:02] The position is equal.} 10. Nd2 {[%emt 0:05:00]} O-O {[%emt 0:00:36]} 11. Be2 {[%emt 0:03:15]} Re8 {[%emt 0:00:42]} 12. O-O {[%emt 0:04:36]} Bd7 {[%emt 0:01:26]} 13. N2f3 {[%emt 0:20:02]} Rc8 {[%emt 0:21:33]} 14. Nb5 {[%emt 0:15:34]} Bb8 {[%emt 0:00:42]} (14... Bf8 $1 $11) 15. Bb2 {[%emt 0:05:44]} ({White should try} 15. Bxf6 $1 $14 Qxf6 16. Qxd5) 15... a6 {[%emt 0:01:31]} 16. Nc3 {[%emt 0:01:24]} ({White should play} 16. Nbd4 $11) 16... Bg4 $15 {[%emt 0:00:18]} 17. Rc1 {[%emt 0:06:11]} Qd6 {[%emt 0:02:19]} 18. g3 {[%emt 0:00:51]} Ba7 {[%emt 0:01:26]} 19. Nd4 {[%emt 0:05:37]} Bh3 {[%emt 0:01:08]} 20. Re1 {[%emt 0:00:12]} Nxd4 {[%emt 0:03:00]} 21. exd4 {[%emt 0:00:10]} Qb4 {[%emt 0:00:17]} 22. Bf1 $1 {[%emt 0:06:11]} Bg4 {[%emt 0:01:11] [#]} (22... Bxd4 $2 {is the wrong capture.} 23. Rxe8+ (23. Bxh3 Rxe1+ 24. Qxe1 Rd8 $18) 23... Rxe8 24. Bxh3 $18) (22... Bxf1 $11 {keeps the balance.} 23. Kxf1 Rxe1+ (23... Bxd4 24. Nxd5 Qb5+ 25. Kg1 $11) (23... Qxd4 24. Qxd4 Bxd4 25. Nxd5 $11) 24. Qxe1 Re8 (24... Bxd4 25. Nxd5 Qxe1+ 26. Rxe1 $11)) 23. Nxd5 $1 $16 {[%emt 0:00:46][%cal Bc3d5,Bd5c7,Bc7e8,Be8d6][%mdl 544]} Bxd1 {[%emt 0:03:01]} 24. Rxe8+ {[%emt 0:03:48]} Nxe8 $2 {[%emt 0:00:11][%mdl 8192] A mistake that costs the game.} (24... Rxe8 $16 25. Nxb4 Bg4) 25. Rxc8 $18 {[%emt 0:01:15] White is clearly winning.} (25. Nxb4 Rxc1 26. Bxc1 Bxd4 $14) 25... Qe1 {[%emt 0:00:38] ...Bf3 would now be deadly.} 26. Nc7 {[%emt 0:00:27]} Kf8 {[%emt 0:02:23]} 27. Ba3+ {[%emt 0:00:19]} ({Not} 27. Nxe8 Ke7 28. Nxg7 Qa5 $11) ({Less strong is} 27. Rxe8+ Qxe8 28. Nxe8 Kxe8 $18) 27... Kg8 {[%emt 0:00:01]} 28. Rxe8+ {[%emt 0:00:37] Black is weak on the dark squares} Qxe8 {[%emt 0:00:05]} 29. Nxe8 {[%emt 0:00:04]} Bxd4 {[%emt 0:00:03]} 30. Nd6 {[%emt 0:01:54]} b5 {[%emt 0:00:01][%cal Bb7b5,Bb5b4][%mdl 32]} 31. Bg2 {[%emt 0:01:12]} Bc2 {[%emt 0:00:45]} 32. Be4 {[%emt 0:01:06]} Bd1 {[%emt 0:00:20]} (32... Bxe4 $142 33. Nxe4 g6) 33. Bb7 {[%emt 0:00:51]} Bc3 {[%emt 0:00:02]} 34. Bxa6 {[%emt 0:00:53]} b4 {[%emt 0:00:01]} 35. Ne4 {[%emt 0:00:51]} Be1 {[%emt 0:00:01]} 36. Kf1 {[%emt 0:00:11]} bxa3 {[%emt 0:00:02]} 37. Kxe1 {[%emt 0:00:07]} Bxb3 {[%emt 0:00:04]} 38. Nc3 {[%emt 0:00:21]} Be6 {[%emt 0:00:07]} 39. Bd3 {[%emt 0:00:18]} g5 {[%emt 0:00:14][%cal Bg7g5,Bg5g4][%mdl 32]} 40. Bc2 {[%emt 0:00:18]} Kg7 {[%emt 0:00:15]} 41. Kd2 {[%emt 0:30:10]} Kf6 {[%emt 0:30:06]} 42. Bxh7 {[%emt 0:00:56]} Ke5 {[%emt 0:00:04]} 43. Bb1 {[%emt 0:00:12]} Bc4 {[%emt 0:00:11]} 44. Ke3 {[%emt 0:02:53]} g4 {[%emt 0:00:02]} 45. Bd3 {[%emt 0:01:18]} Be6 {[%emt 0:00:03]} 46. Nb5 {[%emt 0:00:41]} Bxa2 {[%emt 0:00:01]} 47. Nxa3 {[%emt 0:00:05] [#] White threatens Bc4 and mate.} Be6 {[%emt 0:00:14]} 48. Bc4 {[%emt 0:00:07] Weighted Error Value: White=0.22 (precise) /Black=0.38.  Loses game:     	---       	Black=1      Mistake:       	White=2     	Black=3      Inaccurate:     	White=1     	Black=2      OK:         	White=8     	Black=11     Best:        	White=2     	Black=1      Strong:       	White=2     	---} 1-0

[Event "22nd Rochefort Festival Masters 2024"]
[Site "Rochefort"]
[Date "2024.02.18"]
[Round "2.5"]
[White "Babaud, Antoine"]
[Black "Larkin, Vladyslav"]
[Result "1/2-1/2"]
[ECO "A41"]
[WhiteElo "2143"]
[BlackElo "2484"]
[Annotator "TA"]
[PlyCount "83"]
[EventDate "2024.02.18"]
[EventType "swiss"]
[EventCountry "FRA"]
[SourceTitle "playchess.com"]
[Source "ChessBase"]
[SourceQuality "1"]
[TimeControl "40/5400+30:1800+30"]

{[%evp 12,83,52,51,57,53,59,18,14,16,21,11,24,0,31,0,0,0,4,-12,0,-5,24,0,75,73,105,106,93,105,135,126,131,127,137,107,169,0,143,142,175,175,175,175,185,180,177,165,195,170,190,181,203,152,153,144,166,138,180,168,164,154,205,153,201,124,112,102,113,0,0,0,0,0]} 1. d4 {[%emt 0:00:04]} d6 {[%emt 0:12:38]} 2. Nf3 {[%emt 0:01:33]} Bg4 {[%emt 0:01:45]} 3. c4 {[%emt 0:02:34]} g6 {[%emt 0:07:34]} 4. Nc3 {[%emt 0:03:12]} Bg7 {[%emt 0:00:07]} 5. e3 {[%emt 0:03:02]} Nc6 {[%emt 0:25:56]} 6. Be2 {[%emt 0:06:02]} Nf6 {[%emt 0:16:02]} 7. h3 {[%emt 0:07:01]} Bd7 {[%emt 0:00:30]} 8. e4 {[%emt 0:07:53]} e5 {[%emt 0:00:12]} 9. Be3 {[%emt 0:00:42]} exd4 {[%emt 0:00:16]} 10. Nxd4 {[%emt 0:00:26]} O-O {[%emt 0:00:04]} 11. Qd2 {[%emt 0:05:03]} Re8 {[%emt 0:02:16]} 12. Nxc6 {[%emt 0:01:39]} bxc6 {[%emt 0:10:07]} 13. Bd3 {[%emt 0:10:19]} c5 {[%emt 0:00:43]} 14. O-O {[%emt 0:01:09]} Bc6 {[%emt 0:00:35]} 15. Qc2 {[%emt 0:07:09]} Rb8 {[%emt 0:00:15]} 16. Rae1 {[%emt 0:06:14]} Qe7 {[%emt 0:11:45][%cal Rf6e4]} 17. Bd2 {[%emt 0:05:33]} h5 {[%emt 0:07:32]} (17... Nh5 $11 {remains equal.}) 18. b3 $16 {[%emt 0:03:34]} h4 {[%emt 0:00:37]} 19. Nd5 {[%emt 0:01:59]} Qd7 {[%emt 0:00:31]} 20. Bg5 {[%emt 0:01:41][%csl LRf6,LRh4] White is more active.} Bxd5 {[%emt 0:00:14]} 21. exd5 {[%emt 0:00:40]} Nh5 {[%emt 0:00:04]} 22. Bxh4 {[%emt 0:02:07]} Bd4 {[%emt 0:01:01]} 23. Kh2 {[%emt 0:02:42]} Be5+ {[%emt 0:00:29]} (23... a5 $16 {was necessary.}) 24. Kg1 {[%emt 0:05:49]} Bd4 $1 {[%emt 0:00:28]} 25. Be2 $36 {[%emt 0:00:45][%mdl 2048] White is really pushing.} Ng7 {[%emt 0:00:44]} 26. Bg4 {[%emt 0:00:50]} f5 {[%emt 0:00:03]} 27. Bf3 {[%emt 0:00:15]} Kf7 {[%emt 0:00:31]} 28. Bg5 {[%emt 0:00:39][%cal Bh4g5,Bg5f4,Bf4d2][%mdl 32]} Re5 {[%emt 0:00:57]} 29. Bf4 {[%emt 0:00:32]} Re7 {[%emt 0:00:08]} 30. Rxe7+ {[%emt 0:02:29]} Qxe7 {[%emt 0:00:03]} 31. Bd2 {[%emt 0:00:09]} Qh4 {[%emt 0:00:22]} 32. Bc3 {[%emt 0:00:50]} Re8 {[%emt 0:00:36]} 33. Rd1 {[%emt 0:00:38]} Bf6 {[%emt 0:01:22]} 34. Qd2 {[%emt 0:02:12]} Re7 {[%emt 0:00:28]} 35. Bxf6 {[%emt 0:00:28]} Qxf6 {[%emt 0:00:03]} 36. Re1 {[%emt 0:01:27]} Ne8 {[%emt 0:00:56] Black is weak on the light squares} (36... Rxe1+ $16 {is a better defense.} 37. Qxe1 Qb2) 37. Rxe7+ {[%emt 0:00:38]} Kxe7 {[%emt 0:00:22]} (37... Qxe7 $16 38. g3 Nf6) 38. Qa5 {[%emt 0:00:23][%cal Og2g3] Strongly threatening g3!} Qa1+ {[%emt 0:00:35]} 39. Kh2 {[%emt 0:00:05][%cal Og2g4]} Qb2 {[%emt 0:00:06]} 40. Qxa7 {[%emt 0:04:27]} ({White has to play} 40. Qe1+ $16 Qe5+ 41. Qxe5+ dxe5 42. g4) 40... Qxf2 $11 {[%emt 0:00:18]} 41. Qa5 {[%emt 0:30:09]} Qe3 {[%emt 0:03:49] Dodges Qc3} 42. Kh1 {[%emt 0:00:00] Weighted Error Value: White=0.24 (precise) /Black=0.18 (very precise) .  Mistake:       	White=1     	Black=4      Inaccurate:     	White=3     	Black=4      OK:         	White=9     	Black=11     Best:        	White=1     	---        Strong:       	---       	Black=1} 1/2-1/2